bitfinex/quotes_ETHUSD_20250131
["timestamp","ask_amount","ask_price","bid_price","bid_amount"]
[1738327645290,8.85044237,3348.5,3347.8,0.58517624]
[1738327645501,8.83303385,3348.5,3347.8,0.58517624]
[1738327647694,0.01740852,3348.4,3347.8,0.58517624]
[1738327647888,0.81,3348.3,3347.8,0.58517624]
[1738327648129,9.81648661,3348.2,3347.8,0.58517624]
[1738327648290,8.83303385,3348.2,3347.8,0.58517624]
[1738327648631,9.61743385,3348.1,3347.8,0.58517624]
[1738327649186,0.01740852,3348.0,3347.9,0.06387767]
[1738327649390,8.83303385,3348.0,3347.9,0.06387767]
[1738327650030,9.79477723,3348.0,3347.9,0.06387767]
[1738327650618,8.83303385,3348.0,3347.9,0.06387767]
[1738327651153,8.83303385,3348.5,3347.9,0.06387767]
[1738327651447,0.8031,3348.8,3347.9,0.06387767]
[1738327651655,0.01740852,3348.7,3347.9,0.06387767]
[1738327651866,0.8031,3348.8,3347.9,0.06387767]
[1738327652444,0.01740852,3348.7,3347.9,0.06387767]
[1738327652750,0.8031,3348.8,3347.9,0.06387767]
[1738327654671,0.8031,3348.8,3347.9,0.81055725]
[1738327655041,0.8031,3348.8,3348.1,3.48921005]
[1738327655240,0.8031,3348.8,3348.2,3.0]
[1738327655761,0.8031,3348.8,3348.3,0.06452919]
[1738327656129,0.8031,3348.8,3348.2,3.0]
[1738327656328,8.85044237,3348.7,3347.9,0.71681311]
[1738327656662,8.83303385,3348.7,3347.8,3.58517624]
[1738327656972,8.83303385,3348.7,3347.9,0.02986609]
[1738327657268,8.83303385,3348.7,3347.9,0.09439528]
[1738327657420,8.83303385,3348.7,3347.9,0.06452919]
[1738327660131,8.83303385,3349.3,3348.0,0.02986608]
[1738327660332,9.64853385,3349.2,3348.2,3.0]
[1738327660632,9.64853385,3349.2,3348.2,3.02986373]
[1738327660843,9.64853385,3349.2,3348.3,0.06452919]
[1738327661046,10.61338724,3349.2,3348.3,0.06452919]
[1738327661245,8.83303385,3349.6,3349.0,3.0]
[1738327661467,8.83303385,3349.5,3349.0,3.0298585]
[1738327661674,8.83303385,3349.5,3349.1,0.06444436]
[1738327662339,8.83303385,3349.5,3349.0,3.0298585]
[1738327662534,8.83303385,3349.5,3349.3,3.0]
[1738327662722,8.83303385,3350.0,3349.4,0.06432383]
[1738327662931,8.83303385,3350.0,3349.6,2.71166423]
[1738327663227,8.83303385,3350.0,3349.7,0.06411853]
[1738327665166,8.83303385,3350.0,3349.8,0.06393559]
[1738327665485,8.83303385,3350.0,3349.4,0.7548]
[1738327665671,8.83303385,3350.0,3349.9,0.06335984]
[1738327665873,8.83303385,3350.0,3349.4,0.7548]
[1738327666073,8.83303385,3350.0,3349.9,0.06335984]
[1738327666426,8.83303385,3350.0,3349.4,0.7548]
[1738327666626,8.83303385,3350.0,3349.9,0.06335984]
[1738327666935,8.83303385,3350.0,3349.5,0.02985198]
[1738327667153,8.83303385,3350.0,3349.9,0.06335984]
[1738327668156,8.83303385,3350.2,3349.9,0.06335984]
[1738327668364,8.83303385,3350.2,3349.4,0.7548]
[1738327668661,8.83303385,3350.2,3350.0,0.06335984]
[1738327668869,9.79842723,3350.2,3349.4,0.7548]
[1738327669729,9.79842723,3350.2,3349.5,0.06335984]
[1738327670332,0.01740852,3350.1,3349.5,0.06335984]
[1738327670523,9.79842723,3350.2,3349.4,3.0]
[1738327670869,0.7584,3350.0,3349.5,0.06335984]
[1738327671042,0.01740852,3349.9,3349.5,0.06335984]
[1738327671367,0.01740852,3349.9,3349.0,3.0]
[1738327671549,8.83303385,3349.8,3349.0,3.0]
[1738327671758,0.01740852,3349.7,3349.0,3.0]
[1738327671942,8.83303385,3349.8,3349.0,3.0]
[1738327671943,8.83303385,3349.8,3349.0,3.02985488]
[1738327672146,8.83303385,3349.8,3349.1,0.79723229]
[1738327672470,8.83303385,3349.8,3349.1,0.06323494]
[1738327674582,8.83303385,3349.8,3349.2,0.02985487]
[1738327674779,8.83303385,3349.8,3349.1,0.09308853]
[1738327675081,8.83303385,3349.8,3349.3,0.06332415]
[1738327675380,8.83303385,3349.8,3349.4,0.06332415]
[1738327675735,8.83303385,3349.8,3349.1,0.02985359]
[1738327676084,8.83303385,3349.8,3349.3,3.49091858]
[1738327676233,8.83303385,3349.8,3349.4,3.0]
[1738327676676,8.83303385,3349.8,3349.5,0.06332415]
[1738327677181,8.83303385,3349.7,3349.5,0.06332415]
[1738327677472,8.83303385,3349.7,3349.5,0.89512415]
[1738327677672,8.83303385,3349.7,3349.6,0.74158968]
[1738327678075,8.83303385,3349.7,3349.6,0.06321707]
[1738327678779,8.83303385,3349.7,3349.4,3.02985306]
[1738327678985,8.83303385,3349.7,3349.6,0.06321707]
[1738327679164,8.83303385,3349.7,3349.4,3.61481107]
[1738327679474,8.83303385,3349.7,3349.6,0.06321707]
[1738327679679,8.83303385,3349.7,3349.4,3.58495912]
[1738327679877,8.83303385,3349.7,3349.6,0.06321707]
[1738327680052,8.83303385,3349.7,3349.4,4.40107884]
[1738327680252,8.83303385,3349.7,3349.6,0.06321707]
[1738327680877,8.83303385,3349.7,3349.4,3.61481107]
[1738327681083,8.83303385,3349.7,3349.6,0.06321707]
[1738327681582,8.83303385,3351.1,3349.7,0.0075]
[1738327681786,9.65094237,3351.0,3350.0,3.49091858]
[1738327682085,0.78,3351.4,3350.9,3.0]
[1738327682240,8.83303385,3351.6,3351.3,3.0]
[1738327682436,9.61303385,3352.4,3351.3,3.02983695]
[1738327682670,0.99931191,3352.3,3351.4,0.06310109]
[1738327682872,0.98190339,3352.3,3351.4,0.06310109]
[1738327683139,0.98190339,3352.3,3351.5,0.0298339]
[1738327683569,0.98190339,3352.3,3351.6,0.06310109]
[1738327683877,0.98190339,3352.3,3351.3,3.0298339]
[1738327684077,0.50356747,3352.2,3351.7,0.06310109]
[1738327684285,0.50356747,3352.2,3351.3,3.0298339]
[1738327684509,0.50356747,3352.2,3351.8,0.06310109]
[1738327684684,0.50356747,3352.2,3351.3,3.0298339]
[1738327684881,0.50356747,3352.2,3351.9,0.06310109]
[1738327685221,0.98190339,3352.3,3352.0,0.06310109]
[1738327685403,8.83303385,3352.2,3352.0,0.06310109]
[1738327685573,8.83303385,3352.2,3351.3,3.0298339]
[1738327685915,8.83303385,3352.1,3351.4,0.06310109]
[1738327686689,8.83303385,3352.0,3351.5,3.02983393]
[1738327686915,8.83303385,3352.2,3351.7,2.70821936]
[1738327687067,8.83303385,3352.2,3351.8,3.0]
[1738327687607,8.83303385,3352.2,3351.9,0.06219163]
[1738327689200,0.8096,3352.0,3351.9,0.06219163]
[1738327689717,0.8096,3352.0,3351.4,2.70821936]
[1738327689919,0.8096,3352.0,3351.9,0.06219163]
[1738327690394,0.8096,3352.0,3351.4,2.70821936]
[1738327690726,8.83303385,3352.2,3351.9,0.06219163]
[1738327690926,8.83303385,3352.2,3352.0,2.70821936]
[1738327691227,8.83303385,3352.2,3352.0,2.7697066]
[1738327692196,0.7829,3352.5,3352.0,2.7697066]
[1738327692397,8.83303385,3352.8,3352.3,2.70821936]
[1738327692602,8.83303385,3352.8,3352.7,2.70821936]
[1738327692807,8.83303385,3353.0,3352.7,2.70821936]
[1738327693195,8.83303385,3353.0,3352.8,0.06134911]
[1738327693582,8.83303385,3353.0,3352.7,2.70821936]
[1738327693786,8.83303385,3353.0,3352.8,0.06128674]
[1738327694002,0.8215,3353.5,3352.8,0.06128674]
[1738327694232,0.8215,3353.5,3352.7,2.70821936]
[1738327694533,8.83303385,3353.4,3353.0,2.70821936]
[1738327694902,8.83303385,3353.4,3353.3,2.70821936]
[1738327695390,8.83303385,3353.4,3353.3,2.76934129]
[1738327696231,8.83303385,3353.4,3353.3,0.06112193]
[1738327696383,9.79848724,3353.4,3353.3,0.06112193]
[1738327696588,9.79848724,3353.4,3352.7,2.70821936]
[1738327696905,10.60038724,3353.4,3353.3,0.06087255]
[1738327697215,10.60038724,3353.4,3352.0,0.7525]
[1738327697216,0.8019,3353.3,3352.5,3.0]
[1738327697421,1.86193872,3353.3,3352.4,2.70821936]
[1738327697631,0.7742,3353.2,3352.6,0.06045384]
[1738327697934,8.83303385,3353.1,3352.1,2.70821936]
[1738327698135,8.83303385,3353.1,3352.7,0.06045384]
[1738327698341,8.83303385,3353.0,3352.7,2.70821936]
[1738327698505,8.83303385,3353.0,3352.8,0.06055181]
[1738327698889,8.83303385,3353.0,3352.7,3.34945194]
[1738327699091,8.83303385,3353.0,3352.9,0.06055181]
[1738327699292,8.83303385,3353.0,3352.7,3.0]
[1738327699920,8.83303385,3353.0,3352.8,0.06055181]
[1738327700303,8.83303385,3353.0,3352.6,3.48437751]
[1738327700485,9.9328114,3353.0,3352.9,0.06055181]
[1738327700687,9.9328114,3353.0,3352.2,3.48437751]
[1738327700888,0.01740852,3352.9,3352.2,3.48437751]
[1738327701133,0.01740852,3352.9,3352.3,0.06052509]
[1738327701338,0.99502199,3352.8,3352.3,0.06052509]
[1738327702097,9.9328114,3353.0,3352.3,0.06052509]
[1738327702516,0.01740852,3352.9,3352.3,0.06052509]
[1738327703528,8.83303385,3352.8,3352.3,0.06052509]
[1738327703831,0.01740852,3352.7,3351.8,3.48437751]
[1738327704146,0.8093,3352.5,3352.4,0.06060525]
[1738327704444,0.8093,3352.4,3351.1,4.31657751]
[1738327704601,0.7784,3352.2,3351.1,4.31657751]
[1738327704929,0.01740852,3352.1,3351.2,0.05246851]
[1738327705640,0.01740852,3352.1,3351.2,3.05246851]
[1738327705988,0.7784,3352.0,3351.2,3.05246851]
[1738327706189,0.01740852,3351.9,3351.2,3.05246851]
[1738327706962,0.7784,3352.0,3351.2,3.05246851]
[1738327707616,0.01740852,3351.9,3351.2,0.05246851]
[1738327707791,9.65743385,3351.8,3351.2,0.05246851]
[1738327708114,0.8,3351.6,3350.5,3.48437751]
[1738327708329,0.8,3351.4,3350.5,3.48437751]
[1738327708529,0.01740852,3351.3,3350.5,3.48437751]
[1738327709306,0.8,3351.4,3350.5,3.48437751]
[1738327709539,0.96330339,3351.3,3350.6,0.05246851]
[1738327709738,8.83303385,3351.2,3350.6,0.05246851]
[1738327711649,8.83303385,3351.2,3350.9,3.48437751]
[1738327712035,8.83303385,3351.2,3351.0,0.05311813]
[1738327712957,8.83303385,3351.2,3351.0,3.05311813]
[1738327713113,8.83303385,3351.2,3351.0,3.79037164]
[1738327713513,8.83303385,3352.4,3351.1,0.0075]
[1738327713864,9.60094237,3352.3,3351.4,4.28957751]
[1738327714013,8.83303385,3352.2,3351.5,3.0]
[1738327714215,8.83303385,3352.2,3351.5,3.0529401]
[1738327715268,0.01740852,3352.1,3351.5,3.0529401]
[1738327716413,0.97750276,3352.1,3351.5,0.0529401]
[1738327716953,0.8311,3352.0,3351.1,3.0]
[1738327717114,0.01740852,3351.9,3351.6,0.05322037]
[1738327717319,9.66413385,3351.8,3351.0,3.48437751]
[1738327717558,0.01740852,3351.7,3350.6,4.23877751]
[1738327717757,9.80118809,3351.6,3350.6,4.23877751]
[1738327717961,0.01740852,3351.5,3350.7,3.0]
[1738327718344,0.8311,3351.3,3350.2,3.48437751]
[1738327718582,0.8129,3351.1,3349.8,4.25157751]
[1738327718882,0.8129,3350.9,3349.8,3.48437751]
[1738327719191,0.8129,3350.7,3349.8,3.48437751]
[1738327719339,0.01740852,3350.6,3349.8,3.48437751]
[1738327720370,0.01740852,3350.6,3349.5,3.48437751]
[1738327720371,9.66513385,3350.5,3349.5,3.48437751]
[1738327720572,0.01740852,3350.4,3349.5,3.48437751]
[1738327720795,9.80128809,3350.3,3349.5,3.48437751]
[1738327721103,0.01740852,3350.2,3349.6,3.0]
[1738327721599,9.80128809,3350.3,3349.6,3.0]
[1738327721784,8.83303385,3350.3,3349.6,3.0]
[1738327722018,8.83303385,3350.3,3349.9,3.48437751]
[1738327722187,8.83303385,3350.3,3349.9,4.27287751]
[1738327722397,8.83303385,3350.3,3350.0,3.0]
[1738327724102,0.8028,3350.2,3349.6,3.0]
[1738327724297,0.82020852,3350.2,3349.6,3.0]
[1738327724670,8.83303385,3350.1,3349.6,3.0]
[1738327724876,0.01740852,3350.0,3349.6,3.0]
[1738327725095,0.01740852,3350.0,3349.6,2.6168]
[1738327725096,0.96532424,3349.9,3349.6,2.6168]
[1738327725405,0.96532424,3349.9,3349.7,0.04788846]
[1738327725610,0.01740852,3349.8,3349.1,3.48437751]
[1738327725814,0.96532424,3349.9,3349.8,0.04788846]
[1738327726017,8.83303385,3350.1,3349.5,3.48437751]
[1738327726181,8.83303385,3350.1,3349.6,0.7516]
[1738327726607,8.83303385,3350.1,3349.7,0.04788846]
[1738327727128,8.83303385,3350.1,3349.9,3.48437751]
[1738327727613,8.83303385,3350.1,3350.0,0.04788846]
[1738327727920,8.83303385,3350.7,3350.1,0.7516]
[1738327728229,8.83303385,3351.2,3350.5,3.0]
[1738327728371,8.83303385,3351.1,3350.9,3.48437751]
[1738327728877,8.83303385,3351.1,3351.0,0.04788846]
[1738327730691,9.60873385,3352.0,3351.1,0.0075]
[1738327730912,8.83303385,3351.9,3351.5,3.48437751]
[1738327731117,8.83303385,3351.9,3351.5,3.51421182]
[1738327731528,8.83303385,3351.9,3351.6,0.04802628]
[1738327732286,8.83303385,3351.9,3351.7,0.7516]
[1738327732733,8.83303385,3352.4,3351.7,0.7516]
[1738327732882,8.83303385,3352.4,3351.9,3.48437751]
[1738327733082,8.83303385,3352.3,3351.9,3.48437751]
[1738327733497,8.83303385,3352.3,3352.0,0.04631105]
[1738327734115,8.83303385,3352.3,3351.9,3.48437751]
[1738327734330,8.83303385,3352.3,3352.1,0.04631105]
[1738327734601,8.83303385,3352.3,3352.2,0.04631105]
[1738327734815,8.83303385,3352.3,3351.9,3.48437751]
[1738327735016,8.83303385,3352.3,3352.2,0.04631105]
[1738327735229,8.83303385,3352.3,3351.9,3.48437751]
[1738327735541,8.83303385,3352.3,3352.2,0.04631105]
[1738327736046,8.83303385,3352.3,3351.9,3.48437751]
[1738327736249,8.83303385,3352.3,3352.2,0.04631105]
[1738327736409,8.83303385,3352.5,3351.9,3.48437751]
[1738327736601,8.83303385,3352.5,3352.2,3.48437751]
[1738327737004,8.83303385,3352.5,3352.3,0.04631105]
[1738327737927,8.83303385,3352.9,3352.3,3.47965991]
[1738327738114,8.83303385,3352.9,3352.7,3.48437751]
[1738327738325,8.83303385,3353.2,3352.7,3.48437751]
[1738327739449,0.88330338,3353.1,3352.4,0.0298222]
[1738327739748,0.8271,3353.0,3352.3,3.48437751]
[1738327739907,0.8271,3353.0,3352.5,0.04572011]
[1738327740102,0.8271,3353.0,3352.3,3.48437751]
[1738327740341,0.8271,3353.0,3352.6,0.04572011]
[1738327740549,0.8271,3353.0,3352.3,3.48437751]
[1738327740550,1.05608457,3352.9,3352.3,3.48437751]
[1738327741063,8.83303385,3353.2,3352.7,3.48437751]
[1738327741551,8.83303385,3353.2,3352.8,0.04508462]
[1738327742054,8.83303385,3353.2,3352.9,0.04508462]
[1738327742410,8.83303385,3353.1,3352.4,3.7751]
[1738327742645,8.83303385,3353.1,3352.5,0.04494249]
[1738327742849,0.88330338,3353.0,3352.5,0.04494249]
[1738327743152,0.88330338,3353.0,3352.4,0.02982735]
[1738327743351,0.88330338,3353.0,3352.6,0.04494249]
[1738327743551,0.88330338,3353.0,3352.3,3.48437751]
[1738327743755,0.9007119,3353.0,3352.7,0.04494249]
[1738327743910,0.97337457,3352.9,3352.3,3.48437751]
[1738327744110,0.97337457,3352.9,3352.8,0.04494249]
[1738327744330,0.8271,3352.8,3352.3,3.48437751]
[1738327744954,0.84450852,3352.8,3352.3,3.48437751]
[1738327745112,0.84450852,3352.8,3351.9,3.48437751]
[1738327745456,9.01482216,3352.7,3351.9,3.48437751]
[1738327745660,0.01740852,3352.6,3351.9,3.48437751]
[1738327746034,9.01482216,3352.7,3351.9,3.48437751]
[1738327746771,8.85044237,3352.6,3351.5,4.25947751]
[1738327746931,0.8271,3352.5,3351.5,4.25947751]
[1738327747136,0.98419222,3352.4,3351.6,0.03733395]
[1738327747456,0.98419222,3352.4,3351.9,3.48437751]
[1738327748371,0.98419222,3352.4,3351.6,0.0075]
[1738327748567,1.00160074,3352.4,3351.6,3.0]
[1738327749670,0.98419222,3352.4,3351.6,3.0]
[1738327749875,0.8271,3352.5,3351.9,3.48437751]
[1738327750187,8.83303385,3352.6,3351.9,4.31157751]
[1738327750567,8.83303385,3352.6,3352.0,3.0]
[1738327751389,8.83303385,3352.5,3352.0,3.0]
[1738327751597,3.5575,3353.7,3352.0,3.0]
[1738327751598,0.8103,3353.1,3352.3,3.48437751]
[1738327751748,0.8103,3353.1,3352.4,3.02982578]
[1738327751949,8.83303385,3353.5,3352.8,0.7557]
[1738327752164,9.79736724,3353.4,3352.8,3.78552263]
[1738327753062,0.01740852,3353.3,3352.8,3.0]
[1738327753270,0.01740852,3353.3,3352.7,3.48437751]
[1738327753490,9.79736724,3353.4,3352.7,3.48437751]
[1738327754375,0.01740852,3353.3,3352.4,3.0]
[1738327754586,0.7798,3353.1,3352.4,3.0]
[1738327754772,0.79720852,3353.1,3352.4,3.0]
[1738327754969,0.7798,3353.1,3352.4,3.0]
[1738327755174,0.7798,3353.1,3352.4,3.02982745]
[1738327755503,0.7798,3353.1,3352.5,0.04515127]
[1738327755798,0.17612776,3353.0,3352.5,0.04515127]
[1738327756010,8.83303385,3353.4,3352.7,3.48437751]
[1738327756474,8.83303385,3353.4,3352.8,0.04515127]
[1738327756901,8.83303385,3353.4,3352.8,3.04515127]
[1738327757084,8.83303385,3353.4,3352.8,3.07497452]
[1738327757287,8.83303385,3353.3,3352.8,3.88237452]
[1738327757597,9.62263385,3354.1,3353.1,3.48437751]
[1738327757913,0.96226339,3354.0,3353.1,3.48437751]
[1738327758214,0.96226339,3354.0,3353.2,3.07495766]
[1738327759470,0.97967191,3354.0,3353.2,3.04513795]
[1738327759910,0.96226339,3354.0,3353.2,3.04513795]
[1738327760506,0.96226339,3354.0,3353.2,3.07495606]
[1738327761204,0.96226339,3354.0,3353.2,3.04513795]
[1738327761205,0.59031805,3353.9,3353.2,3.04513795]
[1738327761414,0.60772657,3353.9,3353.2,3.04513795]
[1738327761604,9.4233519,3353.9,3353.3,0.02981814]
[1738327761804,8.83303385,3353.9,3353.4,0.7698]
[1738327762000,0.9653,3354.4,3353.6,3.0]
[1738327762001,8.83303385,3354.3,3353.6,3.0]
[1738327762318,8.83303385,3354.3,3353.7,0.044201]
[1738327763312,8.83303385,3354.3,3353.7,0.042201]
[1738327765107,0.01740852,3354.2,3353.7,0.042201]
[1738327765432,0.8144,3354.0,3353.1,3.48437751]
[1738327765638,0.01740852,3353.9,3353.1,3.48437751]
[1738327765805,0.01740852,3353.9,3353.2,0.04405855]
[1738327766008,0.7856,3353.7,3353.2,0.04405855]
[1738327766188,9.81404661,3353.6,3352.7,0.60283095]
[1738327766387,8.83303385,3353.6,3352.8,0.04405855]
[1738327766898,0.206,3353.5,3352.8,0.04405855]
[1738327767109,0.206,3353.5,3350.9,0.29856035]
[1738327767110,0.7856,3353.3,3352.0,4.29647751]
[1738327767334,0.206,3353.5,3352.9,0.04405855]
[1738327767335,0.7975,3353.1,3352.9,0.04405855]
[1738327767489,9.81523661,3353.0,3352.0,0.8121]
[1738327767696,8.83303385,3352.9,3352.0,0.8121]
[1738327767998,8.83303385,3352.9,3352.1,0.04405855]
[1738327769425,0.01740852,3352.8,3352.1,0.04405855]
[1738327769633,8.83303385,3352.9,3352.1,0.04405855]
[1738327769929,1.05953281,3352.8,3352.1,0.04405855]
[1738327770134,1.07694133,3352.8,3352.1,0.04405855]
[1738327772050,0.002,3352.5,3352.1,0.04405855]
[1738327772257,8.83503385,3352.5,3352.1,0.04405855]
[1738327773423,0.775,3352.4,3352.1,0.04405855]
[1738327773612,0.01740852,3352.3,3352.1,0.04405855]
[1738327773812,8.85044237,3352.3,3352.1,0.04405855]
[1738327774056,8.83303385,3352.3,3352.1,0.04405855]
[1738327774357,8.83303385,3352.3,3352.2,0.7898]
[1738327774723,8.83303385,3352.3,3352.2,0.83441363]
[1738327775075,0.002,3352.5,3352.2,1.57379274]
[1738327775232,0.002,3352.5,3352.3,0.02982567]
[1738327775430,0.002,3352.5,3352.4,6.48437751]
[1738327775746,0.002,3352.5,3352.4,6.52899114]
[1738327777131,0.002,3352.5,3352.4,0.04461363]
[1738327777556,0.002,3352.5,3352.1,3.0]
[1738327777716,0.002,3352.5,3352.4,0.04500433]
[1738327777917,0.002,3352.5,3352.0,3.48437751]
[1738327778113,8.83503385,3352.5,3352.4,0.04507983]
[1738327778319,9.79684809,3352.5,3352.0,3.48437751]
[1738327778533,9.79684809,3352.5,3352.4,0.04507983]
[1738327778728,9.79684809,3352.5,3351.8,0.02983059]
[1738327779876,0.97968481,3352.4,3351.8,0.04519531]
[1738327780949,0.01740852,3352.3,3351.8,0.04519531]
[1738327781348,0.01740852,3352.3,3351.7,3.7612]
[1738327781657,0.01740852,3352.3,3351.7,3.0]
[1738327781658,8.83303385,3352.2,3351.7,3.0]
[1738327781870,1.74561272,3352.1,3351.8,0.04519531]
[1738327782253,1.74561272,3352.1,3351.6,3.48437751]
[1738327782470,1.74561272,3352.1,3351.7,0.04519531]
[1738327782635,1.76302124,3352.1,3351.7,0.04519531]
[1738327782834,1.74561272,3352.1,3351.7,0.04519531]
[1738327783470,1.05786466,3352.0,3351.7,0.04519531]
[1738327783874,0.002,3351.8,3351.7,0.04519531]
[1738327784252,8.83503385,3351.8,3351.7,0.04519531]
[1738327784450,8.83503385,3351.8,3351.0,0.8015]
[1738327784651,8.83303385,3351.7,3351.1,0.04393662]
[1738327785550,8.83303385,3351.7,3351.2,3.48437751]
[1738327785779,8.83303385,3351.7,3351.3,3.0]
[1738327786143,8.83303385,3351.7,3351.4,0.04405659]
[1738327786642,8.83303385,3351.7,3351.6,3.0]
[1738327787182,8.83303385,3351.7,3351.6,3.04405659]
[1738327788284,8.83303385,3351.7,3351.6,0.04405659]
[1738327789551,9.79517723,3351.7,3351.2,3.0]
[1738327789767,9.79517723,3351.7,3351.6,0.04405659]
[1738327789973,9.79517723,3351.7,3351.0,0.7949]
[1738327790494,9.79517723,3351.7,3351.1,0.04400771]
[1738327792089,9.79517723,3351.7,3351.1,3.04400771]
[1738327792285,1.05835772,3351.6,3351.1,3.04400771]
[1738327792487,8.83303385,3351.7,3351.1,3.04400771]
[1738327792488,8.83303385,3351.7,3351.4,3.0]
[1738327792668,8.83303385,3351.7,3351.6,3.48437751]
[1738327793384,8.83303385,3351.7,3351.6,3.52846521]
[1738327795868,0.002,3351.8,3351.6,3.52846521]
[1738327797911,0.002,3351.8,3351.7,2.998]
[1738327798108,0.002,3351.8,3351.7,3.73450991]
[1738327798411,0.002,3351.8,3351.7,3.77853539]
[1738327799269,0.002,3351.8,3351.7,3.04202548]
[1738327800165,0.002,3351.8,3351.7,0.04402548]
[1738327800481,0.7988,3351.8,3351.2,3.48437751]
[1738327800681,0.01740852,3351.7,3350.9,0.7758]
[1738327800884,9.63183385,3351.8,3350.9,0.80563858]
[1738327801286,9.63183385,3351.8,3350.9,4.29445588]
[1738327801607,9.63183385,3351.8,3351.2,3.48437751]
[1738327802306,8.83503385,3351.8,3351.3,0.02983795]
[1738327803572,8.83503385,3351.8,3351.3,3.02983795]
[1738327804619,8.83503385,3351.8,3351.3,3.0]
[1738327804797,9.71653724,3351.7,3351.2,3.48437751]
[1738327806116,8.83303385,3351.7,3351.3,0.02983801]
[1738327806475,8.83303385,3351.7,3351.4,0.7803]
[1738327806696,8.83303385,3351.7,3351.6,5.70796698]
[1738327806897,0.002,3351.8,3351.6,2.70796698]
[1738327807572,0.002,3351.8,3351.7,3.03733313]
[1738327807774,0.002,3351.8,3351.7,5.29338984]
[1738327808099,0.002,3352.5,3351.9,0.7752]
[1738327808299,0.002,3352.5,3352.4,5.70796698]
[1738327808546,0.002,3352.5,3352.4,6.48485693]
[1738327810648,8.83303385,3353.2,3352.4,6.48485693]
[1738327810945,0.7624,3353.0,3352.0,3.48485693]
[1738327811261,0.01740852,3352.9,3352.1,3.0]
[1738327811402,0.8138,3352.8,3352.1,3.0]
[1738327811603,0.8138,3352.8,3352.0,3.48485693]
[1738327813145,1.89503772,3352.8,3352.1,0.02983193]
[1738327813448,1.89503772,3352.8,3352.0,3.48485693]
[1738327813821,10.72807157,3352.8,3352.0,3.48485693]
[1738327814019,9.64683385,3352.8,3352.0,3.48485693]
[1738327815308,9.64683385,3352.8,3352.1,0.03979366]
[1738327816967,9.64683385,3352.8,3352.1,0.62591905]
[1738327817258,0.01740852,3352.7,3352.1,0.03979366]
[1738327817422,0.96642424,3352.6,3351.7,3.0]
[1738327817623,9.79945809,3352.6,3351.9,0.0075]
[1738327818138,0.7513,3352.4,3352.0,0.03975368]
[1738327818453,3.49235693,3353.0,3352.0,0.03975368]
[1738327818454,0.7513,3352.2,3352.0,0.03975368]
[1738327818620,0.7513,3352.2,3351.6,3.48485693]
[1738327818822,8.83303385,3352.3,3351.7,3.0075]
[1738327819138,8.83303385,3352.3,3351.7,3.07586046]
[1738327820238,8.83303385,3352.3,3352.0,4.29925693]
[1738327820452,8.83303385,3352.7,3352.1,3.03864056]
[1738327820962,5.9075,3353.8,3352.4,3.48485693]
[1738327820963,9.59403385,3353.1,3352.4,3.48485693]
[1738327821167,8.83303385,3353.0,3352.4,3.48485693]
[1738327821532,8.83303385,3353.0,3352.6,0.8405]
[1738327821776,8.83303385,3353.3,3352.9,3.0]
[1738327822483,8.83303385,3353.3,3353.0,0.03836515]
[1738327822772,0.7791,3353.1,3352.0,3.48485693]
[1738327822929,0.7791,3353.1,3352.0,3.51468639]
[1738327823137,0.7791,3353.1,3352.1,3.0]
[1738327823362,0.7791,3353.1,3352.2,0.0075]
[1738327823575,0.7791,3353.1,3352.2,0.03732873]
[1738327823781,1.2854368,3353.1,3352.2,0.03732873]
[1738327823980,0.7791,3353.1,3352.5,3.0075]
[1738327825300,0.79650852,3353.1,3352.5,3.0075]
[1738327825721,8.83303385,3353.0,3352.5,3.0]
[1738327826002,0.01740852,3352.9,3352.5,3.0]
[1738327826229,0.4867526,3352.8,3352.5,3.0]
[1738327826855,8.83303385,3353.0,3352.5,3.0]
[1738327827898,8.83303385,3353.0,3352.0,0.60493749]
[1738327827899,0.7823,3352.8,3352.0,4.08979442]
[1738327828097,0.01740852,3352.7,3352.0,4.08979442]
[1738327828313,0.7823,3352.8,3352.1,3.0]
[1738327830226,0.7823,3352.8,3352.2,0.03820527]
[1738327830584,0.7823,3352.8,3352.4,2.70691246]
[1738327830784,1.74383338,3352.8,3352.4,2.70691246]
[1738327831011,1.74383338,3352.8,3352.5,0.03820527]
[1738327831227,1.7612419,3352.8,3352.5,0.03820527]
[1738327831649,8.83303385,3352.7,3352.1,2.70691246]
[1738327832541,8.83303385,3352.7,3352.4,2.70691246]
[1738327833043,8.83303385,3352.7,3352.5,0.06919191]
[1738327833340,0.8121,3353.2,3352.6,0.0075]
[1738327833559,8.83303385,3353.4,3353.0,2.70691246]
[1738327833731,0.7667,3354.1,3353.3,2.70691246]
[1738327833901,8.83303385,3354.0,3353.4,3.0]
[1738327834099,9.85201666,3354.0,3353.5,0.06901424]
[1738327834301,9.85201666,3354.0,3353.6,2.70691246]
[1738327834530,0.7667,3354.1,3353.6,2.70691246]
[1738327834736,0.7667,3354.1,3353.7,0.06900536]
[1738327834937,0.205,3354.9,3353.7,0.06900536]
[1738327834938,9.59973385,3354.5,3353.9,2.70691246]
[1738327835342,0.01740852,3354.4,3354.0,0.06882331]
[1738327835639,0.96171424,3354.3,3354.0,0.06882331]
[1738327835838,0.7667,3354.1,3354.0,0.06882331]
[1738327836047,0.7667,3354.1,3353.6,2.70691246]
[1738327836264,9.59973385,3354.4,3354.0,0.06881443]
[1738327836545,0.7667,3354.7,3354.1,3.55002527]
[1738327836699,0.7667,3354.7,3354.2,3.0]
[1738327836900,0.01740852,3354.6,3354.1,3.48142836]
[1738327837099,0.01740852,3354.6,3354.2,0.06851702]
[1738327837343,0.7667,3354.7,3353.8,3.48142836]
[1738327837544,0.7667,3354.7,3354.3,0.06851702]
[1738327837837,8.85044237,3354.6,3354.3,0.06851702]
[1738327838044,0.97912276,3354.5,3353.9,3.0]
[1738327838242,0.97912276,3354.5,3354.4,0.06851702]
[1738327838400,0.97912276,3354.5,3353.6,0.0075]
[1738327838620,8.83303385,3354.4,3353.6,0.0075]
[1738327838817,0.01740852,3354.3,3353.7,0.06851702]
[1738327839056,8.83303385,3354.4,3353.7,0.06851702]
[1738327839541,8.83303385,3354.4,3353.8,3.48142836]
[1738327839958,8.83303385,3354.4,3353.9,0.06851702]
[1738327840361,8.83303385,3354.4,3353.9,0.09833227]
[1738327840665,8.83303385,3354.4,3353.9,0.06851702]
[1738327842166,8.83303385,3355.0,3354.3,3.0075]
[1738327842396,8.83303385,3354.9,3354.3,3.0075]
[1738327842661,0.01740852,3354.8,3354.4,0.06851702]
[1738327843026,8.83303385,3354.9,3354.4,0.06851702]
[1738327843226,8.83303385,3354.9,3354.2,3.51124062]
[1738327843451,8.83303385,3354.9,3354.3,3.0075]
[1738327843655,8.83303385,3354.9,3354.7,3.0]